bitfinex-derivatives/quotes_SOLF0:USTF0_20240910
["timestamp","ask_amount","ask_price","bid_price","bid_amount"]
[1725972793609,9.13,134.51,134.48,3.7176]
[1725972794312,12.847,134.51,134.48,3.7176]
[1725972795116,9.13,134.49,134.45,3.78635721]
[1725972795903,9.13,134.49,134.46,3.7181]
[1725972796519,9.13,134.49,134.47,3.718]
[1725972797815,12.8475,134.49,134.46,3.7182]
[1725972798614,3.7178,134.48,134.45,7.50485721]
[1725972798919,12.8478,134.48,134.45,3.7185]
[1725972799813,12.8482,134.47,134.44,3.7187]
[1725972800011,9.13,134.45,134.38,4.0199]
[1725972800212,9.13,134.45,134.39,9.13]
[1725972800414,9.13,134.44,134.38,4.0199]
[1725972800614,9.13,134.44,134.38,13.1499]
[1725972801415,12.8489,134.44,134.41,3.7196]
[1725972801614,9.13,134.44,134.38,1.2878]
[1725972801817,1.3566,134.5,134.38,1.2878]
[1725972801818,9.13,134.42,134.38,1.2878]
[1725972802118,9.13,134.42,134.4,3.7198]
[1725972802810,9.13,134.42,134.41,3.7197]
[1725972803914,9.13,134.44,134.41,3.7197]
[1725972804113,9.13,134.44,134.42,3.7194]
[1725972804710,9.13,134.44,134.38,10.4178]
[1725972804711,9.13,134.44,134.41,3.7196]
[1725972805812,12.8489,134.44,134.41,3.7196]
[1725972807028,3.7193,134.43,134.4,3.72]
[1725972807219,9.13,134.42,134.37,12.84802494]
[1725972808118,9.13,134.42,134.4,3.7198]
[1725972808918,9.13,134.42,134.41,3.7197]
[1725972809321,9.13,134.44,134.38,9.13]
[1725972809524,9.13,134.44,134.42,3.7193]
[1725972811038,9.13,134.43,134.37,3.71802494]
[1725972811324,12.8493,134.43,134.37,9.13]
[1725972811920,12.8493,134.43,134.4,3.72]
[1725972812123,9.13,134.44,134.38,9.13]
[1725972812522,9.13,134.44,134.41,3.7195]
[1725972813329,12.8489,134.44,134.41,3.7195]
[1725972813524,9.13,134.44,134.41,3.7195]
[1725972814630,12.8489,134.44,134.41,3.7195]
[1725972815131,9.13,134.44,134.41,3.7195]
[1725972816122,12.8491,134.44,134.4,3.7199]
[1725972816431,12.8491,134.44,134.38,9.13]
[1725972816932,12.8491,134.44,134.41,3.7197]
[1725972817233,9.13,134.44,134.41,3.7197]
[1725972818226,12.849,134.44,134.41,3.7197]
[1725972818534,9.13,134.43,134.4,3.7199]
[1725972818731,9.13,134.43,134.4,7.38562953]
[1725972819125,9.13,134.43,134.4,3.7199]
[1725972819930,12.8492,134.43,134.4,3.7199]
[1725972820829,1.3566,134.5,134.39,12.79982199]
[1725972821035,9.13,134.46,134.41,9.13]
[1725972822135,9.13,134.45,134.42,3.7193]
[1725972822430,9.13,134.45,134.39,12.79982199]
[1725972822634,9.13,134.44,134.39,3.66982199]
[1725972822824,9.13,134.44,134.38,9.13]
[1725972823028,12.8491,134.44,134.4,3.7198]
[1725972823224,12.8491,134.44,134.38,12.89069648]
[1725972823432,9.13,134.44,134.38,12.89069648]
[1725972823732,9.13,134.44,134.41,3.7195]
[1725972824335,12.849,134.44,134.41,3.7195]
[1725972826544,3.7192,134.43,134.4,3.7199]
[1725972827241,1.3566,134.5,134.38,12.89069648]
[1725972827435,9.13,134.44,134.38,12.89069648]
[1725972828038,9.13,134.44,134.41,3.7195]
[1725972828236,9.13,134.44,134.38,12.89069648]
[1725972828435,9.13,134.44,134.39,9.13]
[1725972829243,9.13,134.44,134.42,3.7193]
[1725972833039,3.7188,134.45,134.39,12.87060569]
[1725972833040,1.3566,134.5,134.39,12.87060569]
[1725972833238,9.13,134.46,134.4,9.13]
[1725972833845,9.13,134.46,134.44,3.7188]
[1725972834241,9.13,134.46,134.4,9.13]
[1725972836847,9.13,134.46,134.43,3.7189]
[1725972837748,9.13,134.46,134.44,3.7188]
[1725972837944,9.13,134.46,134.41,9.13]
[1725972838355,9.13,134.46,134.4,9.13]
[1725972838656,9.13,134.46,134.43,3.719]
[1725972838858,9.13,134.46,134.4,9.13]
[1725972839056,9.13,134.45,134.42,3.7193]
[1725972839755,12.8488,134.45,134.42,3.7193]
[1725972839952,9.13,134.43,134.42,3.7193]
[1725972841249,9.13,134.43,134.41,3.7195]
[1725972841450,9.13,134.42,134.34,1.3226]
[1725972841659,9.13,134.42,134.37,9.13]
[1725972841859,9.13,134.44,134.41,3.7197]
[1725972842659,12.8489,134.44,134.41,3.7197]
[1725972844047,12.8489,134.44,134.41,7.42486598]
[1725972844245,12.8489,134.44,134.41,3.7197]
[1725972844452,9.13,134.44,134.42,3.7194]
[1725972844756,9.13,134.46,134.39,9.13]
[1725972844958,9.13,134.47,134.41,9.13]
[1725972845160,9.13,134.48,134.42,9.13]
[1725972845556,9.13,134.48,134.46,3.7182]
[1725972845755,9.13,134.49,134.44,9.13]
[1725972845957,1.3566,134.5,134.44,9.13]
[1725972846348,2.6425,134.51,134.46,9.13]
[1725972846552,9.13,134.53,134.47,9.13]
[1725972846760,9.13,134.5,134.44,9.13]
[1725972847163,2.7492,134.56,134.44,9.13]
[1725972847363,12.8473,134.5,134.44,9.13]
[1725972847566,12.8473,134.5,134.43,9.13]
[1725972847754,12.8473,134.5,134.47,3.718]
[1725972848456,9.13,134.5,134.42,4.0488]
[1725972848662,9.13,134.5,134.43,9.13]
[1725972849257,9.13,134.5,134.45,9.13]
[1725972850163,9.13,134.5,134.43,9.13]
[1725972850164,12.8473,134.5,134.43,9.13]
[1725972850562,12.8473,134.5,134.46,3.7181]
[1725972850763,3.7176,134.49,134.43,9.13]
[1725972850964,12.8476,134.49,134.45,3.7184]
[1725972851261,9.13,134.49,134.43,9.13]
[1725972851857,9.13,134.49,134.45,3.7185]
[1725972852057,12.8477,134.49,134.45,3.7185]
[1725972852254,9.13,134.49,134.42,9.13]
[1725972852454,9.13,134.47,134.42,9.13]
[1725972853772,9.13,134.47,134.44,3.7187]
[1725972855262,9.13,134.47,134.45,3.7186]
[1725972856163,12.848,134.48,134.45,3.7186]
[1725972857771,12.8481,134.47,134.44,3.7188]
[1725972858074,12.8481,134.47,134.42,9.13]
[1725972858268,12.8481,134.47,134.44,3.7189]
[1725972858872,9.13,134.47,134.43,3.719]
[1725972859381,9.13,134.47,134.42,9.13]
[1725972860069,9.13,134.47,134.45,3.7185]
[1725972861870,9.13,134.47,134.44,3.7188]
[1725972862180,9.13,134.45,134.38,9.13]
[1725972862378,9.13,134.44,134.42,3.7194]
[1725972865386,9.13,134.44,134.38,9.13]
[1725972865984,9.13,134.44,134.41,3.7197]
[1725972867476,9.13,134.45,134.42,3.7194]
[1725972870482,9.13,134.45,134.43,3.7191]
[1725972874592,2.7451,134.46,134.41,12.85414049]
[1725972875583,1.3689,134.51,134.45,9.13]
[1725972875796,10.4989,134.51,134.45,9.13]
[1725972876691,10.4989,134.51,134.47,3.7179]
[1725972880398,10.4989,134.51,134.48,3.7178]
[1725972881601,10.4989,134.51,134.49,3.7175]
[1725972882388,10.4989,134.51,134.5,3.7172]
[1725972882592,9.13,134.52,134.46,9.13]
[1725972882995,9.13,134.52,134.49,3.7174]
[1725972886099,9.13,134.52,134.5,3.7171]
[1725972891500,9.13,134.52,134.51,3.717]
[1725972892293,2.7138,134.53,134.51,3.717]
[1725972892497,9.13,134.55,134.52,3.7167]
[1725972893205,9.13,134.55,134.53,3.7163]
[1725972894006,9.13,134.55,134.54,3.7161]
[1725972894196,9.13,134.55,134.5,9.13]
[1725972894403,9.13,134.55,134.49,9.13]
[1725972894600,1.3058,134.56,134.48,9.13]
[1725972894601,9.13,134.54,134.48,9.13]
[1725972895207,9.13,134.54,134.49,3.76486737]
[1725972897301,9.13,134.54,134.51,3.7168]
[1725972898411,9.13,134.54,134.5,3.7171]
[1725972898907,9.13,134.52,134.48,3.7176]
[1725972899413,9.13,134.52,134.48,3.73224626]
[1725972899710,9.13,134.52,134.49,3.7173]
[1725972900605,9.13,134.55,134.49,9.13]
[1725972901203,9.13,134.55,134.51,3.7168]
[1725972902313,9.13,134.55,134.52,3.7166]
[1725972902903,9.13,134.55,134.51,3.7168]
[1725972903113,9.13,134.54,134.48,12.76039014]
[1725972903610,9.13,134.54,134.5,3.7171]
[1725972903913,9.13,134.52,134.48,3.63039014]
[1725972904305,9.13,134.52,134.49,3.7174]
[1725972904814,9.13,134.52,134.48,3.7176]
[1725972905011,1.3587,134.53,134.42,11.4719]
[1725972905012,9.13,134.5,134.42,4.0334]
[1725972905207,9.13,134.49,134.45,3.7185]
[1725972906910,9.13,134.49,134.42,4.0334]
[1725972907107,9.13,134.47,134.42,9.13]
[1725972907310,9.13,134.47,134.33,7.4436]
[1725972907311,1.3998,134.51,134.44,9.13]
[1725972907505,1.3456,134.52,134.48,3.7176]
[1725972907705,1.3456,134.52,134.47,9.13]
[1725972908013,1.3456,134.52,134.48,3.7178]
[1725972908512,1.3456,134.52,134.47,9.13]
[1725972909709,1.3456,134.52,134.49,3.7173]
[1725972911811,10.4756,134.52,134.46,12.82392414]
[1725972912012,9.13,134.51,134.44,9.13]
[1725972912218,9.13,134.51,134.44,12.93931131]
[1725972913116,9.13,134.51,134.47,3.7179]
[1725972913718,10.5275,134.51,134.47,3.7179]
[1725972914029,9.13,134.5,134.46,3.7182]
[1725972914214,9.13,134.49,134.44,3.80931131]
[1725972915119,9.13,134.49,134.46,3.7182]
[1725972915518,9.13,134.49,134.44,3.80931131]
[1725972915723,9.13,134.47,134.35,7.75449366]
[1725972915923,9.13,134.47,134.41,9.13]
[1725972916114,9.13,134.47,134.42,3.66409353]
[1725972916521,9.13,134.47,134.44,3.7188]
[1725972917127,9.13,134.47,134.43,3.7192]
[1725972920125,9.13,134.48,134.42,12.79409353]
[1725972920429,9.13,134.48,134.42,9.13]
[1725972920626,9.13,134.49,134.43,3.8017113]
[1725972921233,1.3975,134.51,134.45,3.7186]
[1725972921527,9.13,134.49,134.45,3.7186]
[1725972921715,9.13,134.49,134.46,3.7183]
[1725972921918,9.13,134.49,134.44,12.8301488]
[1725972922516,9.13,134.5,134.45,9.13]
[1725972922724,9.13,134.5,134.47,3.7178]
[1725972923320,9.13,134.5,134.45,12.82010416]
[1725972925225,9.13,134.5,134.47,3.7179]
[1725972925921,9.13,134.5,134.45,12.82010416]
[1725972926725,9.13,134.5,134.47,3.7179]
[1725972928332,1.3456,134.52,134.45,3.69010416]
[1725972928632,1.3456,134.52,134.47,9.13]
[1725972928831,1.3456,134.52,134.49,3.7174]
[1725972929726,1.3456,134.52,134.5,3.7172]
[1725972929927,1.3587,134.53,134.5,3.7172]
[1725972933533,1.3037,134.55,134.52,3.7166]
[1725972935928,10.4337,134.55,134.52,3.7166]
[1725972940934,1.3416,134.56,134.54,3.716]
[1725972941136,1.376,134.57,134.54,3.716]
[1725972941137,10.506,134.57,134.54,3.716]
[1725972941638,1.376,134.57,134.5,9.13]
[1725972941937,1.376,134.57,134.52,9.13]
[1725972942140,125.95694811,134.58,134.52,9.13]
[1725972942351,116.82694811,134.58,134.53,9.13]
[1725972942938,9.13,134.59,134.57,3.7153]
[1725972943147,1.3572,134.64,134.55,3.8098424]
[1725972943339,9.13,134.61,134.57,3.7152]
[1725972943539,9.13,134.6,134.54,9.13]
[1725972943733,9.13,134.6,134.54,3.73996431]
[1725972944046,9.13,134.6,134.55,3.7158]
[1725972944539,9.13,134.58,134.55,3.7158]
[1725972945332,9.13,134.6,134.56,3.7156]
[1725972945834,9.13,134.6,134.54,9.13]
[1725972946035,9.13,134.61,134.55,9.13]
[1725972946731,9.13,134.61,134.56,3.74972125]
[1725972946936,9.13,134.61,134.57,3.7151]
[1725972947740,1.3572,134.64,134.57,3.7151]
[1725972947939,9.13,134.61,134.57,3.7151]
[1725972950242,9.13,134.61,134.58,3.715]
[1725972950748,9.13,134.6,134.48,3.9246]
[1725972950945,9.13,134.58,134.53,9.13]
[1725972951137,9.13,134.58,134.54,3.68282167]
[1725972951660,9.13,134.58,134.55,3.7157]
[1725972951960,9.13,134.57,134.51,9.13]
[1725972952143,9.13,134.57,134.54,3.7161]
[1725972952950,9.13,134.58,134.54,3.7161]
[1725972953155,9.13,134.58,134.55,3.7159]
[1725972953448,9.13,134.58,134.53,9.13]
[1725972953644,9.13,134.59,134.54,9.13]
[1725972953851,9.13,134.59,134.55,3.7156]
[1725972954255,9.13,134.61,134.54,12.82620159]
[1725972954558,9.13,134.61,134.56,3.7154]
[1725972955460,1.3572,134.64,134.55,3.7157]
[1725972955461,9.13,134.59,134.55,3.7157]
[1725972955660,9.13,134.59,134.54,12.81839664]
[1725972956160,9.13,134.59,134.56,3.7155]
[1725972956351,9.13,134.59,134.54,12.81839664]
[1725972956671,9.13,134.58,134.52,9.13]
[1725972956961,9.13,134.58,134.54,3.716]
[1725972961761,9.13,134.57,134.53,3.7163]
[1725972964268,11.814,134.58,134.54,3.7161]
[1725972966263,9.13,134.55,134.49,9.13]
[1725972967067,9.13,134.55,134.51,3.7168]
[1725972969070,4.0081,134.58,134.47,12.90556527]
[1725972969071,9.13,134.54,134.47,12.90556527]
[1725972969260,9.13,134.54,134.47,9.13]
[1725972969461,9.13,134.54,134.48,12.87841703]
[1725972969661,9.13,134.55,134.48,12.87841703]
[1725972969861,9.13,134.55,134.52,3.7165]
[1725972970267,9.13,134.56,134.51,9.13]
[1725972970468,13.1381,134.58,134.52,9.13]
[1725972971467,13.1381,134.58,134.54,3.716]
[1725972972072,13.1381,134.58,134.53,3.7163]
[1725972972965,13.1381,134.58,134.52,3.7166]
[1725972973269,9.13,134.56,134.52,3.7166]
[1725972973476,9.13,134.55,134.5,9.13]
[1725972973675,9.13,134.55,134.48,9.13]
[1725972974075,9.13,134.55,134.51,3.7168]
[1725972975077,9.13,134.55,134.52,3.7167]
[1725972978081,9.13,134.55,134.49,9.13]
[1725972978483,9.13,134.55,134.5,3.7171]
[1725972979883,9.13,134.55,134.51,3.7169]
[1725972982185,9.13,134.55,134.49,9.13]
[1725972982384,9.13,134.55,134.48,3.71765318]
[1725972982685,9.13,134.55,134.5,9.13]
[1725972982877,9.13,134.55,134.52,3.7165]
[1725972984082,9.13,134.56,134.52,3.7165]
[1725972984887,9.13,134.56,134.5,12.92795449]
[1725972985078,13.1381,134.58,134.51,9.13]
[1725972985484,4.0081,134.58,134.52,9.13]
[1725972985685,4.0081,134.58,134.54,9.13]
[1725972985886,2.684,134.58,134.56,3.7153]
[1725972989997,116.82322361,134.59,134.54,9.13]
[1725972990195,116.82322361,134.59,134.55,9.13]
[1725972990394,2.7295,134.63,134.57,9.13]
[1725972990591,2.7295,134.63,134.58,9.13]
[1725972991595,2.7295,134.63,134.59,3.7146]
[1725972992196,2.7295,134.63,134.6,3.7144]
[1725972993500,2.7295,134.63,134.59,3.7146]
[1725972993716,2.7295,134.63,134.57,9.13]
[1725972993717,9.13,134.62,134.57,9.13]
[1725972993907,9.13,134.62,134.55,9.13]
[1725972994109,9.13,134.62,134.57,3.7152]
[1725972994700,9.13,134.62,134.55,9.13]
[1725972994701,9.13,134.61,134.56,3.7155]
[1725972994904,9.13,134.61,134.55,9.13]
[1725972995109,2.7295,134.63,134.59,3.7147]
[1725972995304,9.13,134.62,134.59,3.7147]
[1725972995507,9.13,134.62,134.56,9.13]
[1725972995811,9.13,134.61,134.57,3.7152]
[1725972998105,9.13,134.61,134.58,3.715]
[1725972998912,9.13,134.61,134.57,3.7152]
[1725972999508,9.13,134.61,134.56,3.7155]
[1725972999715,9.13,134.6,134.56,3.7155]
[1725972999908,9.13,134.59,134.53,9.13]
[1725973000309,9.13,134.57,134.5,1.4128]
[1725973000502,9.13,134.57,134.5,14.27105802]
[1725973001316,9.13,134.57,134.53,3.7162]
[1725973002815,9.13,134.57,134.52,3.7166]
[1725973003118,9.13,134.56,134.52,3.7166]
[1725973004414,9.13,134.56,134.53,3.7164]
[1725973005211,9.13,134.56,134.52,3.7166]
[1725973007121,9.13,134.57,134.52,9.13]
[1725973007714,3.9355,134.58,134.55,3.7159]
[1725973008020,2.6244,134.58,134.55,3.7159]
[1725973008223,2.6244,134.58,134.53,9.13]
[1725973008421,9.13,134.6,134.54,9.13]
[1725973008722,9.13,134.6,134.56,3.7155]
[1725973008926,9.13,134.6,134.54,9.13]
[1725973009113,9.13,134.61,134.55,9.13]
[1725973009316,9.13,134.63,134.57,9.13]
[1725973009711,9.13,134.63,134.5,7.4341]
[1725973009712,11.8362,134.64,134.58,9.13]
[1725973010317,11.8362,134.64,134.6,3.7144]
[1725973011224,11.8362,134.64,134.59,3.7146]
[1725973012719,9.13,134.62,134.59,3.7146]
[1725973014622,9.13,134.62,134.58,3.7148]
[1725973015927,9.13,134.61,134.57,3.7151]
[1725973016230,9.13,134.6,134.54,12.8662494]
[1725973016426,9.13,134.6,134.56,3.7154]
[1725973016627,9.13,134.6,134.54,12.8662494]
[1725973018123,9.13,134.6,134.57,3.7153]
[1725973018320,9.13,134.6,134.54,12.8662494]
[1725973019226,9.13,134.6,134.57,3.7152]
[1725973020627,9.13,134.6,134.54,12.8662494]
[1725973021632,2.7062,134.64,134.56,9.13]
[1725973021633,9.13,134.61,134.56,9.13]
[1725973021932,2.7062,134.64,134.56,9.13]
[1725973021933,9.13,134.62,134.56,9.13]
[1725973022131,9.13,134.62,134.58,3.7148]
[1725973022930,9.13,134.6,134.54,9.13]
[1725973023631,9.13,134.6,134.56,3.7154]
[1725973024334,9.13,134.6,134.55,3.7158]
[1725973025022,9.13,134.6,134.53,12.8757232]
[1725973026327,9.13,134.58,134.53,12.8757232]
[1725973026529,9.13,134.58,134.51,11.8598]
[1725973026730,9.13,134.57,134.53,3.7162]
[1725973027627,9.13,134.57,134.52,3.65458135]
[1725973027628,9.13,134.57,134.54,3.7161]
[1725973028831,14.14945992,134.63,134.55,3.7158]
[1725973029137,9.13,134.58,134.53,9.13]
[1725973029442,9.13,134.58,134.55,3.7157]
[1725973031742,9.13,134.57,134.5,9.13]
[1725973031942,9.13,134.56,134.5,9.13]
[1725973032438,9.13,134.56,134.49,12.81830196]
[1725973032642,9.13,134.55,134.49,9.13]
[1725973033040,9.13,134.55,134.51,3.7168]
[1725973035149,9.13,134.55,134.52,3.7167]
[1725973035837,9.13,134.55,134.51,3.7169]
[1725973037349,9.13,134.53,134.48,9.13]
[1725973038345,9.13,134.55,134.48,9.13]
[1725973038545,9.13,134.55,134.51,3.7168]
[1725973038750,9.13,134.55,134.48,9.13]
[1725973039138,9.13,134.55,134.5,3.717]
[1725973039840,9.13,134.55,134.51,3.7169]
[1725973040049,9.13,134.55,134.49,12.90072953]
[1725973040251,9.13,134.55,134.49,9.13]
[1725973040840,9.13,134.55,134.51,3.7168]
[1725973041051,2.6594,134.57,134.51,9.13]
[1725973041252,10.5258,134.58,134.55,3.7157]
[1725973041552,10.5258,134.58,134.53,9.13]
[1725973042248,10.5258,134.58,134.54,3.716]
[1725973043048,10.5258,134.58,134.55,3.7158]
[1725973044159,10.5258,134.58,134.54,3.7161]
[1725973044344,9.13,134.57,134.52,9.13]
[1725973044746,9.13,134.57,134.53,3.7162]
[1725973048054,9.13,134.57,134.52,3.7166]
[1725973048353,9.13,134.56,134.52,3.7166]
[1725973049248,9.13,134.56,134.51,3.7168]
[1725973049460,9.13,134.54,134.51,3.7168]
[1725973049856,9.13,134.54,134.5,3.7171]
[1725973050052,9.13,134.53,134.44,1.4107]
[1725973050253,9.13,134.53,134.46,9.13]
[1725973050458,9.13,134.53,134.49,3.7174]
[1725973051850,9.13,134.53,134.5,3.7172]
[1725973052054,9.13,134.53,134.44,1.4107]
[1725973052252,9.13,134.52,134.46,9.13]
[1725973052753,9.13,134.52,134.48,3.7177]
[1725973054862,9.13,134.52,134.49,3.7175]
[1725973055062,9.13,134.52,134.47,9.13]
[1725973056158,9.13,134.53,134.5,3.7172]
[1725973057158,9.13,134.53,134.49,3.7174]
[1725973058166,4.0379,134.58,134.49,3.7174]
[1725973058167,9.13,134.52,134.49,3.7174]
[1725973062662,9.13,134.52,134.5,3.7172]
[1725973062967,9.13,134.53,134.5,3.7172]
[1725973063261,4.0379,134.58,134.5,3.7172]
[1725973063566,9.13,134.53,134.5,3.7172]
[1725973065870,9.13,134.53,134.46,9.13]
[1725973066071,9.13,134.51,134.46,9.13]
[1725973066265,9.13,134.51,134.44,11.9261]
[1725973066570,9.13,134.51,134.48,3.7177]
[1725973067573,9.13,134.51,134.44,11.9261]
[1725973068366,9.13,134.51,134.48,3.7176]
[1725973070763,9.13,134.5,134.48,3.7176]
[1725973070966,9.13,134.5,134.47,3.718]
[1725973077969,1.2925,134.51,134.45,9.13]
[1725973078977,1.2925,134.51,134.49,3.7173]
[1725973080074,10.4225,134.51,134.49,3.7173]
[1725973081973,9.13,134.51,134.49,3.7173]
[1725973082173,9.13,134.52,134.5,3.7172]
[1725973082776,9.13,134.53,134.51,3.717]
[1725973084474,9.13,134.52,134.5,3.7171]
[1725973084872,9.13,134.53,134.49,3.72499371]
[1725973085077,9.13,134.53,134.51,3.7168]
[1725973085980,9.13,134.53,134.52,3.7167]
[1725973086576,1.3211,134.56,134.53,3.7163]
[1725973086783,1.3211,134.56,134.49,12.92303182]
[1725973086784,9.13,134.55,134.49,12.92303182]
[1725973087088,1.3682,134.57,134.5,9.13]
[1725973087089,10.4982,134.57,134.5,9.13]
[1725973087382,10.4982,134.57,134.54,3.716]
[1725973087681,10.4982,134.57,134.54,3.7161]
[1725973088082,10.4982,134.57,134.51,3.68922211]
[1725973088880,10.4982,134.57,134.54,3.716]
[1725973092574,10.4982,134.57,134.53,3.7163]
[1725973093480,9.13,134.54,134.52,3.7165]
[1725973094083,9.13,134.54,134.51,3.7169]
[1725973095080,9.13,134.54,134.52,3.7166]
[1725973095584,9.13,134.54,134.5,3.76728624]
[1725973095790,9.13,134.54,134.48,9.13]
[1725973096183,9.13,134.54,134.52,3.7166]
[1725973098377,9.13,134.54,134.51,3.7168]
[1725973098784,9.13,134.54,134.5,3.74414186]
[1725973098983,9.13,134.54,134.51,3.7169]
[1725973099877,9.13,134.54,134.52,3.7167]
[1725973100990,9.13,134.54,134.51,3.7169]
[1725973101599,2.7645,134.57,134.46,2.7099]
[1725973101600,9.13,134.53,134.46,2.7099]
[1725973101798,9.13,134.53,134.47,9.13]
[1725973102101,9.13,134.53,134.5,3.717]
[1725973105195,2.7645,134.57,134.51,3.7168]
[1725973105400,9.13,134.54,134.51,3.7168]
[1725973106097,9.13,134.54,134.5,3.7172]
[1725973106305,9.13,134.53,134.5,3.7172]
[1725973114802,2.7645,134.57,134.49,3.7642157]
[1725973114803,9.13,134.54,134.49,3.7642157]
[1725973115208,9.13,134.54,134.48,9.13]
[1725973115509,9.13,134.54,134.51,3.7167]
[1725973115708,9.13,134.54,134.49,3.79405756]
[1725973116111,9.13,134.54,134.51,3.7167]
[1725973120012,9.13,134.54,134.5,7.44739446]
[1725973120214,9.13,134.54,134.48,9.13]
[1725973120515,9.13,134.54,134.51,3.7167]
[1725973120712,9.13,134.54,134.5,3.63474122]
[1725973120912,9.13,134.54,134.48,9.13]
[1725973121119,9.13,134.54,134.51,3.7168]
[1725973121313,9.13,134.54,134.51,7.3485668]
[1725973121814,2.7645,134.57,134.52,3.7167]
[1725973122010,9.13,134.55,134.52,3.7167]
[1725973122407,9.13,134.55,134.5,7.50269303]
[1725973122612,9.13,134.55,134.48,9.13]
[1725973123208,9.13,134.55,134.49,3.76440377]
[1725973124111,9.13,134.55,134.51,3.7169]
[1725973124710,9.13,134.54,134.5,3.7171]
[1725973126217,9.13,134.54,134.48,9.13]
[1725973126809,9.13,134.54,134.5,3.717]
[1725973131418,9.13,134.53,134.49,3.75287818]
[1725973131619,9.13,134.53,134.47,9.13]
[1725973132019,9.13,134.53,134.5,3.7172]
[1725973133421,9.13,134.51,134.49,3.7174]
[1725973134219,9.13,134.51,134.41,2.6049]
[1725973134422,9.13,134.51,134.44,9.13]
[1725973134827,9.13,134.5,134.43,5.15494852]
[1725973135126,9.13,134.5,134.47,3.7179]
[1725973136725,9.13,134.5,134.43,5.15494852]
[1725973136932,9.13,134.48,134.43,3.74404852]
[1725973137138,9.13,134.48,134.42,9.13]
[1725973137324,9.13,134.48,134.45,3.7185]
[1725973137633,9.13,134.48,134.44,3.64624349]
[1725973137932,9.13,134.48,134.45,3.7186]
[1725973138133,9.13,134.48,134.44,3.75185625]
[1725973138328,9.13,134.48,134.42,9.13]
[1725973138538,9.13,134.48,134.45,3.7184]
[1725973139030,9.13,134.48,134.44,7.40361858]
[1725973139224,9.13,134.48,134.42,9.13]
[1725973139529,9.13,134.48,134.45,3.7186]
[1725973140034,9.13,134.48,134.42,12.90919353]
[1725973140234,2.7306,134.52,134.42,12.90919353]
[1725973140531,9.13,134.48,134.42,12.90919353]
[1725973140733,9.13,134.48,134.45,3.7185]
[1725973141529,2.7306,134.52,134.45,3.7185]
[1725973141729,2.7306,134.52,134.45,9.13]
[1725973141929,9.13,134.51,134.45,9.13]
[1725973142131,2.7306,134.52,134.47,9.13]
[1725973142326,2.7306,134.52,134.48,3.7177]
[1725973143037,2.7306,134.52,134.49,3.7175]